[Event "January 2 Early 2024"]
[Site "https://www.chess.com"]
[Date "2024.01.02"]
[Round "6"]
[White "Guerra Tulcan, Lenin"]
[Black "Spitzl, Vinzent"]
[Result "0-1"]
[Board "97"]
[TimeControl "180+1"]
[WhiteFideId "3601382"]
[BlackFideId "12901253"]
[WhiteElo "2647"]
[BlackElo "2488"]
[WhiteTeam "ECU"]
[BlackTeam "GER"]
[WhiteClock "0:00:37"]
[BlackClock "0:00:29"]

1. e4 {[%clk 0:03:00]}  c5 {[%clk 0:02:59]} 2. Nf3 {[%clk 0:03:00]}  d6 {[%clk 0:02:59]} 3. b4 {[%clk 0:03:00]}  cxb4 {[%clk 0:02:55]} 4. a3 {[%clk 0:03:00]}  bxa3 {[%clk 0:02:51]} 5. Bxa3 {[%clk 0:03:01]}  Nc6 {[%clk 0:02:51]} 6. c3 {[%clk 0:03:00]}  e6 {[%clk 0:02:50]} 7. Bd3 {[%clk 0:03:00]}  Nf6 {[%clk 0:02:50]} 8. O-O {[%clk 0:03:00]}  Be7 {[%clk 0:02:47]} 9. Bc2 {[%clk 0:03:00]}  O-O {[%clk 0:02:47]} 10. d4 {[%clk 0:03:01]}  b6 {[%clk 0:02:38]} 11. Nbd2 {[%clk 0:03:00]}  Bb7 {[%clk 0:02:38]} 12. Qb1 {[%clk 0:02:58]}  h6 {[%clk 0:02:36]} 13. Rd1 {[%clk 0:02:57]}  Rc8 {[%clk 0:02:36]} 14. Nf1 {[%clk 0:02:52]}  Na5 {[%clk 0:02:34]} 15. Bb4 {[%clk 0:02:47]}  Nc6 {[%clk 0:02:32]} 16. Ba3 {[%clk 0:02:46]}  Na5 {[%clk 0:02:33]} 17. Bb4 {[%clk 0:02:40]}  Nc6 {[%clk 0:02:33]} 18. e5 {[%clk 0:02:31]}  Nd5 {[%clk 0:02:29]} 19. Ne3 {[%clk 0:02:23]}  Ncxb4 {[%clk 0:02:14]} 20. cxb4 {[%clk 0:02:22]}  Nc3 {[%clk 0:02:14]} 21. Qb3 {[%clk 0:02:12]}  Nxd1 {[%clk 0:02:14]} 22. Bxd1 {[%clk 0:02:09]}  Bxf3 {[%clk 0:02:01]} 23. Bxf3 {[%clk 0:02:07]}  dxe5 {[%clk 0:02:02]} 24. dxe5 {[%clk 0:02:07]}  Qd4 {[%clk 0:01:58]} 25. Rb1 {[%clk 0:01:53]}  Rfd8 {[%clk 0:01:54]} 26. g3 {[%clk 0:01:51]}  a5 {[%clk 0:01:42]} 27. bxa5 {[%clk 0:01:49]}  bxa5 {[%clk 0:01:42]} 28. Kg2 {[%clk 0:01:31]}  Qxe5 {[%clk 0:01:34]} 29. Qb7 {[%clk 0:01:27]}  Bb4 {[%clk 0:01:26]} 30. Ng4 {[%clk 0:01:23]}  Qc7 {[%clk 0:01:19]} 31. Qa6 {[%clk 0:01:22]}  Qc2 {[%clk 0:01:03]} 32. Ra1 {[%clk 0:01:21]}  Rc3 {[%clk 0:00:59]} 33. Qb6 {[%clk 0:01:06]}  Rdc8 {[%clk 0:00:44]} 34. Bb7 {[%clk 0:01:05]}  Rb8 {[%clk 0:00:39]} 35. Qa7 {[%clk 0:01:00]}  Rd8 {[%clk 0:00:35]} 36. Rxa5 {[%clk 0:00:31]}  Bxa5 {[%clk 0:00:32]} 37. Qxa5 {[%clk 0:00:32]}  Rc7 {[%clk 0:00:32]} 38. Ne5 {[%clk 0:00:27]}  Qc5 {[%clk 0:00:27]} 39. Qxc5 {[%clk 0:00:25]}  Rxc5 {[%clk 0:00:27]} 40. f4 {[%clk 0:00:26]}  Rxe5 {[%clk 0:00:25]} 41. fxe5 {[%clk 0:00:26]}  Rd2+ {[%clk 0:00:26]} 42. Kf3 {[%clk 0:00:25]}  Rxh2 {[%clk 0:00:26]} 43. Be4 {[%clk 0:00:26]}  Ra2 {[%clk 0:00:25]} 44. Bd3 {[%clk 0:00:26]}  Ra3 {[%clk 0:00:26]} 45. Ke4 {[%clk 0:00:26]}  Rxd3 {[%clk 0:00:26]} 46. Kxd3 {[%clk 0:00:27]}  f6 {[%clk 0:00:26]} 47. exf6 {[%clk 0:00:28]}  gxf6 {[%clk 0:00:25]} 48. Ke4 {[%clk 0:00:29]}  Kf7 {[%clk 0:00:26]} 49. Kf4 {[%clk 0:00:30]}  Kg6 {[%clk 0:00:26]} 50. Kg4 {[%clk 0:00:31]}  e5 {[%clk 0:00:27]} 51. Kh4 {[%clk 0:00:31]}  f5 {[%clk 0:00:27]} 52. Kh3 {[%clk 0:00:31]}  Kg5 {[%clk 0:00:27]} 53. Kg2 {[%clk 0:00:32]}  Kg4 {[%clk 0:00:28]} 54. Kf2 {[%clk 0:00:33]}  e4 {[%clk 0:00:28]} 55. Ke3 {[%clk 0:00:34]}  Kxg3 {[%clk 0:00:28]} 56. Kd4 {[%clk 0:00:33]}  f4 {[%clk 0:00:28]} 57. Ke5 {[%clk 0:00:34]}  f3 {[%clk 0:00:28]} 58. Kf6 {[%clk 0:00:35]}  e3 {[%clk 0:00:29]} 59. Kg7 {[%clk 0:00:36]}  f2 {[%clk 0:00:29]} 60. Kh8 {[%clk 0:00:37]}  e2 {[%clk 0:00:29]} 61. Kh7 {[%clk 0:00:38]}  e1=Q {[%clk 0:00:29]} 62. Kg8 {[%clk 0:00:39]}  f1=Q {[%clk 0:00:29]} 63. Kh8 {[%clk 0:00:40]}  Qe8+ {[%clk 0:00:29]} 64. Kg7 {[%clk 0:00:40]}  Qff7+ {[%clk 0:00:29]} 65. Kxh6 {[%clk 0:00:37]}  Qg6# {[%clk 0:00:29]} 0-1

[Event "January 2 Early 2024"]
[Site "https://www.chess.com"]
[Date "2024.01.02"]
[Round "6"]
[White "Zavgorodniy, Sergiy"]
[Black "Namitbir Singh Walia"]
[Result "1-0"]
[Board "100"]
[TimeControl "180+1"]
[WhiteFideId "14110148"]
[BlackFideId "35071068"]
[WhiteElo "2622"]
[BlackElo "2465"]
[WhiteTeam "UKR"]
[BlackTeam "IND"]
[WhiteClock "0:00:49"]
[BlackClock "0:00:00"]

1. e4 {[%clk 0:03:00]}  c5 {[%clk 0:02:58]} 2. Nf3 {[%clk 0:03:00]}  Nc6 {[%clk 0:02:58]} 3. Bb5 {[%clk 0:02:59]}  e5 {[%clk 0:02:54]} 4. O-O {[%clk 0:02:56]}  Bd6 {[%clk 0:02:54]} 5. c3 {[%clk 0:02:50]}  Nge7 {[%clk 0:02:48]} 6. a3 {[%clk 0:02:49]}  a6 {[%clk 0:02:46]} 7. Bc4 {[%clk 0:02:43]}  O-O {[%clk 0:02:42]} 8. b4 {[%clk 0:02:42]}  b5 {[%clk 0:02:41]} 9. Ba2 {[%clk 0:02:41]}  c4 {[%clk 0:02:41]} 10. d3 {[%clk 0:02:41]}  cxd3 {[%clk 0:02:39]} 11. Qxd3 {[%clk 0:02:41]}  Bc7 {[%clk 0:02:36]} 12. c4 {[%clk 0:02:27]}  d6 {[%clk 0:02:26]} 13. Nc3 {[%clk 0:02:24]}  bxc4 {[%clk 0:02:19]} 14. Bxc4 {[%clk 0:02:23]}  Bg4 {[%clk 0:02:14]} 15. Bg5 {[%clk 0:02:07]}  Kh8 {[%clk 0:01:45]} 16. h3 {[%clk 0:02:04]}  Bxf3 {[%clk 0:01:44]} 17. Qxf3 {[%clk 0:02:03]}  Nd4 {[%clk 0:01:42]} 18. Qd3 {[%clk 0:01:59]}  f6 {[%clk 0:01:39]} 19. Be3 {[%clk 0:01:56]}  Bb6 {[%clk 0:01:38]} 20. Bxa6 {[%clk 0:01:32]}  Qd7 {[%clk 0:00:41]} 21. Bc4 {[%clk 0:01:25]}  Rfc8 {[%clk 0:00:39]} 22. Nd5 {[%clk 0:01:18]}  Bd8 {[%clk 0:00:35]} 23. Nxe7 {[%clk 0:01:16]}  Bxe7 {[%clk 0:00:34]} 24. Bd5 {[%clk 0:01:16]}  Ra7 {[%clk 0:00:26]} 25. Rfc1 {[%clk 0:01:12]}  Rac7 {[%clk 0:00:25]} 26. Rxc7 {[%clk 0:01:11]}  Qxc7 {[%clk 0:00:25]} 27. Rc1 {[%clk 0:01:09]}  Qb8 {[%clk 0:00:20]} 28. Rxc8+ {[%clk 0:01:06]}  Qxc8 {[%clk 0:00:21]} 29. a4 {[%clk 0:01:06]}  Bd8 {[%clk 0:00:20]} 30. a5 {[%clk 0:01:05]}  Qb8 {[%clk 0:00:07]} 31. Qc4 {[%clk 0:01:02]}  g6 {[%clk 0:00:04]} 32. Bd2 {[%clk 0:00:57]}  Nb5 {[%clk 0:00:03]} 33. Bc6 {[%clk 0:00:55]}  Nc7 {[%clk 0:00:03]} 34. b5 {[%clk 0:00:54]}  d5 {[%clk 0:00:02]} 35. exd5 {[%clk 0:00:52]}  Be7 {[%clk 0:00:02]} 36. b6 {[%clk 0:00:52]}  Ne8 {[%clk 0:00:03]} 37. b7 {[%clk 0:00:51]}  Bd6 {[%clk 0:00:03]} 38. a6 {[%clk 0:00:49]}  Kg7 {[%clk 0:00:00]} 39. Be3 {[%clk 0:00:49]} 1-0

[Event "January 2 Early 2024"]
[Site "https://www.chess.com"]
[Date "2024.01.02"]
[Round "6"]
[White "Bolat, Inayat"]
[Black "Aaditya Dhingra"]
[Result "1/2-1/2"]
[Board "102"]
[TimeControl "180+1"]
[WhiteFideId "13733125"]
[BlackFideId "25678191"]
[WhiteElo "2441"]
[BlackElo "2604"]
[WhiteTeam "KAZ"]
[BlackTeam "IND"]
[WhiteClock "0:00:03"]
[BlackClock "0:00:19"]

1. e4 {[%clk 0:03:00]}  e5 {[%clk 0:02:59]} 2. Nf3 {[%clk 0:03:00]}  Nc6 {[%clk 0:02:59]} 3. Bb5 {[%clk 0:03:00]}  a6 {[%clk 0:02:59]} 4. Ba4 {[%clk 0:03:00]}  Nf6 {[%clk 0:02:57]} 5. O-O {[%clk 0:03:00]}  d6 {[%clk 0:02:57]} 6. c4 {[%clk 0:02:48]}  g6 {[%clk 0:02:51]} 7. d4 {[%clk 0:02:47]}  Bd7 {[%clk 0:02:47]} 8. Nc3 {[%clk 0:02:44]}  Bg7 {[%clk 0:02:44]} 9. Bxc6 {[%clk 0:02:32]}  Bxc6 {[%clk 0:02:43]} 10. dxe5 {[%clk 0:02:32]}  dxe5 {[%clk 0:02:29]} 11. Nxe5 {[%clk 0:02:24]}  Qxd1 {[%clk 0:02:23]} 12. Rxd1 {[%clk 0:02:20]}  Nxe4 {[%clk 0:02:18]} 13. Nxc6 {[%clk 0:02:15]}  Nxc3 {[%clk 0:02:17]} 14. Re1+ {[%clk 0:02:12]}  Kd7 {[%clk 0:02:14]} 15. Ne5+ {[%clk 0:01:49]}  Bxe5 {[%clk 0:02:13]} 16. Rxe5 {[%clk 0:01:50]}  Rhe8 {[%clk 0:02:10]} 17. Rxe8 {[%clk 0:01:43]}  Rxe8 {[%clk 0:02:08]} 18. Be3 {[%clk 0:01:43]}  Ne4 {[%clk 0:02:05]} 19. Rd1+ {[%clk 0:01:42]}  Kc6 {[%clk 0:02:02]} 20. b4 {[%clk 0:01:39]}  b5 {[%clk 0:01:59]} 21. cxb5+ {[%clk 0:00:27]}  axb5 {[%clk 0:01:57]} 22. Rc1+ {[%clk 0:00:25]}  Kb7 {[%clk 0:01:56]} 23. f3 {[%clk 0:00:25]}  Nd6 {[%clk 0:01:54]} 24. Kf2 {[%clk 0:00:25]}  Nc4 {[%clk 0:01:51]} 25. Bc5 {[%clk 0:00:24]}  Kc6 {[%clk 0:01:46]} 26. a4 {[%clk 0:00:24]}  Rd8 {[%clk 0:01:35]} 27. Rc2 {[%clk 0:00:22]}  Ra8 {[%clk 0:01:34]} 28. a5 {[%clk 0:00:20]}  Rd8 {[%clk 0:01:33]} 29. a6 {[%clk 0:00:19]}  Ra8 {[%clk 0:01:29]} 30. a7 {[%clk 0:00:19]}  Kb7 {[%clk 0:01:29]} 31. Re2 {[%clk 0:00:18]}  Nb6 {[%clk 0:01:22]} 32. Re7 {[%clk 0:00:15]}  Rxa7 {[%clk 0:01:20]} 33. Rxf7 {[%clk 0:00:15]}  Ra2+ {[%clk 0:01:18]} 34. Kg3 {[%clk 0:00:15]}  h5 {[%clk 0:01:18]} 35. Rg7 {[%clk 0:00:15]}  Na4 {[%clk 0:01:17]} 36. Bd6 {[%clk 0:00:13]}  Rc2 {[%clk 0:01:15]} 37. Bf4 {[%clk 0:00:13]}  h4+ {[%clk 0:01:07]} 38. Kxh4 {[%clk 0:00:06]}  Rxg2 {[%clk 0:01:03]} 39. Rxc7+ {[%clk 0:00:07]}  Kb6 {[%clk 0:01:02]} 40. Rg7 {[%clk 0:00:07]}  Nc3 {[%clk 0:01:01]} 41. Kh3 {[%clk 0:00:07]}  Re2 {[%clk 0:00:53]} 42. Rxg6+ {[%clk 0:00:07]}  Kb7 {[%clk 0:00:54]} 43. Kg3 {[%clk 0:00:04]}  Nd5 {[%clk 0:00:53]} 44. Rg7+ {[%clk 0:00:05]}  Kc6 {[%clk 0:00:53]} 45. Rg6+ {[%clk 0:00:05]}  Kb7 {[%clk 0:00:52]} 46. Bd6 {[%clk 0:00:05]}  Ne3 {[%clk 0:00:47]} 47. Bc5 {[%clk 0:00:03]}  Rg2+ {[%clk 0:00:46]} 48. Kf4 {[%clk 0:00:02]}  Rxg6 {[%clk 0:00:44]} 49. Kxe3 {[%clk 0:00:02]}  Rh6 {[%clk 0:00:44]} 50. f4 {[%clk 0:00:01]}  Kc6 {[%clk 0:00:43]} 51. Ke4 {[%clk 0:00:01]}  Rxh2 {[%clk 0:00:42]} 52. f5 {[%clk 0:00:02]}  Rh1 {[%clk 0:00:39]} 53. Ke5 {[%clk 0:00:02]}  Re1+ {[%clk 0:00:35]} 54. Kf6 {[%clk 0:00:03]}  Kd7 {[%clk 0:00:35]} 55. Kf7 {[%clk 0:00:03]}  Rf1 {[%clk 0:00:35]} 56. f6 {[%clk 0:00:04]}  Rf5 {[%clk 0:00:34]} 57. Be7 {[%clk 0:00:03]}  Rf4 {[%clk 0:00:33]} 58. Bc5 {[%clk 0:00:03]}  Rf3 {[%clk 0:00:32]} 59. Be7 {[%clk 0:00:03]}  Ra3 {[%clk 0:00:31]} 60. Bc5 {[%clk 0:00:02]}  Ra2 {[%clk 0:00:26]} 61. Be7 {[%clk 0:00:02]}  Rf2 {[%clk 0:00:25]} 62. Bc5 {[%clk 0:00:02]}  Rf3 {[%clk 0:00:23]} 63. Be7 {[%clk 0:00:02]}  Rf1 {[%clk 0:00:20]} 64. Bc5 {[%clk 0:00:03]}  Rf3 {[%clk 0:00:19]} 1/2-1/2

[Event "January 2 Early 2024"]
[Site "https://www.chess.com"]
[Date "2024.01.02"]
[Round "6"]
[White "Borda Rodas, Anapaola S."]
[Black "Assylov, Miras"]
[Result "0-1"]
[Board "103"]
[TimeControl "180+1"]
[WhiteFideId "152781"]
[BlackFideId "13728873"]
[WhiteElo "2454"]
[BlackElo "2600"]
[WhiteTeam "ARG"]
[BlackTeam "KAZ"]
[WhiteClock "0:00:25"]
[BlackClock "0:00:04"]

1. e4 {[%clk 0:03:00]}  c5 {[%clk 0:02:56]} 2. Nf3 {[%clk 0:03:00]}  e6 {[%clk 0:02:56]} 3. d4 {[%clk 0:03:00]}  cxd4 {[%clk 0:02:56]} 4. Nxd4 {[%clk 0:03:00]}  Nf6 {[%clk 0:02:57]} 5. Bd3 {[%clk 0:03:00]}  Nc6 {[%clk 0:02:56]} 6. Nxc6 {[%clk 0:03:00]}  bxc6 {[%clk 0:02:57]} 7. O-O {[%clk 0:02:57]}  d5 {[%clk 0:02:51]} 8. e5 {[%clk 0:02:57]}  Nd7 {[%clk 0:02:51]} 9. Re1 {[%clk 0:02:51]}  Be7 {[%clk 0:02:48]} 10. c4 {[%clk 0:02:50]}  O-O {[%clk 0:02:47]} 11. Nc3 {[%clk 0:02:51]}  Nc5 {[%clk 0:02:42]} 12. Bf1 {[%clk 0:02:50]}  f6 {[%clk 0:02:26]} 13. exf6 {[%clk 0:02:47]}  Bxf6 {[%clk 0:02:27]} 14. Be3 {[%clk 0:02:42]}  Nd7 {[%clk 0:02:21]} 15. Rc1 {[%clk 0:02:26]}  Ne5 {[%clk 0:02:02]} 16. Bc5 {[%clk 0:02:12]}  Re8 {[%clk 0:01:51]} 17. cxd5 {[%clk 0:02:05]}  exd5 {[%clk 0:01:49]} 18. h3 {[%clk 0:01:48]}  Bd7 {[%clk 0:01:39]} 19. Na4 {[%clk 0:01:43]}  Qa5 {[%clk 0:01:28]} 20. Bd4 {[%clk 0:01:40]}  Qxe1 {[%clk 0:00:56]} 21. Qxe1 {[%clk 0:01:23]}  Nf3+ {[%clk 0:00:55]} 22. gxf3 {[%clk 0:01:21]}  Rxe1 {[%clk 0:00:56]} 23. Rxe1 {[%clk 0:01:21]}  Bxd4 {[%clk 0:00:56]} 24. Re7 {[%clk 0:01:17]}  Rd8 {[%clk 0:00:56]} 25. b4 {[%clk 0:01:09]}  Kf8 {[%clk 0:00:50]} 26. Re1 {[%clk 0:01:07]}  Bf6 {[%clk 0:00:45]} 27. Nc5 {[%clk 0:01:06]}  Bf5 {[%clk 0:00:44]} 28. Ne6+ {[%clk 0:01:06]}  Bxe6 {[%clk 0:00:45]} 29. Rxe6 {[%clk 0:01:07]}  Rc8 {[%clk 0:00:44]} 30. a4 {[%clk 0:01:06]}  Kf7 {[%clk 0:00:43]} 31. Re1 {[%clk 0:01:06]}  Bc3 {[%clk 0:00:41]} 32. Rb1 {[%clk 0:01:06]}  Rb8 {[%clk 0:00:39]} 33. b5 {[%clk 0:01:06]}  c5 {[%clk 0:00:40]} 34. Rd1 {[%clk 0:01:00]}  Ke6 {[%clk 0:00:39]} 35. h4 {[%clk 0:00:59]}  Rd8 {[%clk 0:00:30]} 36. f4 {[%clk 0:00:58]}  Kf5 {[%clk 0:00:27]} 37. Bd3+ {[%clk 0:00:55]}  Kxf4 {[%clk 0:00:27]} 38. Bxh7 {[%clk 0:00:56]}  c4 {[%clk 0:00:21]} 39. h5 {[%clk 0:00:53]}  d4 {[%clk 0:00:20]} 40. Bg6 {[%clk 0:00:53]}  Bb2 {[%clk 0:00:18]} 41. a5 {[%clk 0:00:52]}  Rb8 {[%clk 0:00:10]} 42. Bf7 {[%clk 0:00:43]}  Rxb5 {[%clk 0:00:03]} 43. Bxc4 {[%clk 0:00:44]}  Rxa5 {[%clk 0:00:03]} 44. Kg2 {[%clk 0:00:41]}  Rxh5 {[%clk 0:00:03]} 45. Rb1 {[%clk 0:00:39]}  Rg5+ {[%clk 0:00:03]} 46. Kf1 {[%clk 0:00:39]}  Bc3 {[%clk 0:00:03]} 47. Rb7 {[%clk 0:00:39]}  a5 {[%clk 0:00:03]} 48. Rf7+ {[%clk 0:00:38]}  Ke5 {[%clk 0:00:03]} 49. Re7+ {[%clk 0:00:38]}  Kd6 {[%clk 0:00:04]} 50. Ra7 {[%clk 0:00:37]}  Kc5 {[%clk 0:00:04]} 51. Bd3 {[%clk 0:00:38]}  Kb4 {[%clk 0:00:04]} 52. Rb7+ {[%clk 0:00:37]}  Ka3 {[%clk 0:00:03]} 53. Ke2 {[%clk 0:00:37]}  a4 {[%clk 0:00:04]} 54. f4 {[%clk 0:00:38]}  Rg2+ {[%clk 0:00:04]} 55. Kf3 {[%clk 0:00:38]}  Rd2 {[%clk 0:00:04]} 56. Ke4 {[%clk 0:00:38]}  Rb2 {[%clk 0:00:04]} 57. Rxg7 {[%clk 0:00:35]}  Ka2 {[%clk 0:00:02]} 58. f5 {[%clk 0:00:33]}  a3 {[%clk 0:00:02]} 59. Ra7 {[%clk 0:00:33]}  Rf2 {[%clk 0:00:01]} 60. Ra6 {[%clk 0:00:32]}  Bb4 {[%clk 0:00:01]} 61. Bc4+ {[%clk 0:00:31]}  Kb2 {[%clk 0:00:02]} 62. Kxd4 {[%clk 0:00:32]}  Rf4+ {[%clk 0:00:01]} 63. Kd3 {[%clk 0:00:29]}  Rxf5 {[%clk 0:00:02]} 64. Be6 {[%clk 0:00:28]}  Re5 {[%clk 0:00:02]} 65. Kd4 {[%clk 0:00:28]}  Rh5 {[%clk 0:00:02]} 66. Kc4 {[%clk 0:00:29]}  Rh4+ {[%clk 0:00:03]} 67. Kb5 {[%clk 0:00:29]}  a2 {[%clk 0:00:03]} 68. Rxa2+ {[%clk 0:00:28]}  Kc3 {[%clk 0:00:03]} 69. Ra1 {[%clk 0:00:25]}  Rh5+ {[%clk 0:00:04]} 70. Ka4 {[%clk 0:00:25]}  Ra5# {[%clk 0:00:04]} 0-1

[Event "January 2 Early 2024"]
[Site "https://www.chess.com"]
[Date "2024.01.02"]
[Round "6"]
[White "Volkov, Sergei"]
[Black "Lira, Suan Bruno Fernandes"]
[Result "0-1"]
[Board "107"]
[TimeControl "180+1"]
[WhiteFideId "4176588"]
[BlackFideId "22794620"]
[WhiteElo "2552"]
[BlackElo "2356"]
[WhiteTeam "RUS"]
[BlackTeam "BRA"]
[WhiteClock "0:00:00"]
[BlackClock "0:00:13"]

1. d4 {[%clk 0:03:00]}  d5 {[%clk 0:02:59]} 2. Nf3 {[%clk 0:03:01]}  e6 {[%clk 0:03:00]} 3. Bf4 {[%clk 0:03:00]}  Nf6 {[%clk 0:03:00]} 4. e3 {[%clk 0:03:00]}  Bd6 {[%clk 0:03:01]} 5. Ne5 {[%clk 0:03:00]}  O-O {[%clk 0:03:01]} 6. Nd2 {[%clk 0:03:00]}  c5 {[%clk 0:03:01]} 7. c3 {[%clk 0:03:01]}  Qc7 {[%clk 0:03:02]} 8. Bg3 {[%clk 0:03:01]}  Nc6 {[%clk 0:03:00]} 9. f4 {[%clk 0:03:00]}  b6 {[%clk 0:02:58]} 10. Bd3 {[%clk 0:03:00]}  Ne7 {[%clk 0:02:57]} 11. Qf3 {[%clk 0:02:17]}  Bb7 {[%clk 0:02:56]} 12. Bh4 {[%clk 0:02:10]}  Ne8 {[%clk 0:02:34]} 13. O-O {[%clk 0:02:03]}  f6 {[%clk 0:02:31]} 14. Ng4 {[%clk 0:01:52]}  a5 {[%clk 0:02:05]} 15. Qh3 {[%clk 0:01:39]}  Ba6 {[%clk 0:01:51]} 16. Bc2 {[%clk 0:01:00]}  Bxf1 {[%clk 0:01:44]} 17. Rxf1 {[%clk 0:00:44]}  f5 {[%clk 0:01:36]} 18. Ne5 {[%clk 0:00:41]}  Bxe5 {[%clk 0:01:26]} 19. fxe5 {[%clk 0:00:42]}  Ng6 {[%clk 0:01:17]} 20. Bg5 {[%clk 0:00:32]}  f4 {[%clk 0:01:16]} 21. Qxe6+ {[%clk 0:00:25]}  Qf7 {[%clk 0:01:15]} 22. Qxf7+ {[%clk 0:00:22]}  Rxf7 {[%clk 0:01:16]} 23. Bxg6 {[%clk 0:00:16]}  hxg6 {[%clk 0:01:15]} 24. Rxf4 {[%clk 0:00:14]}  Rxf4 {[%clk 0:01:07]} 25. Bxf4 {[%clk 0:00:14]}  cxd4 {[%clk 0:00:47]} 26. exd4 {[%clk 0:00:13]}  Nc7 {[%clk 0:00:47]} 27. Be3 {[%clk 0:00:11]}  Ne6 {[%clk 0:00:40]} 28. Kf2 {[%clk 0:00:10]}  Kf7 {[%clk 0:00:39]} 29. Ke2 {[%clk 0:00:09]}  b5 {[%clk 0:00:39]} 30. Kd3 {[%clk 0:00:06]}  Rh8 {[%clk 0:00:38]} 31. h3 {[%clk 0:00:06]}  g5 {[%clk 0:00:38]} 32. Nf3 {[%clk 0:00:03]}  Kg6 {[%clk 0:00:35]} 33. Ke2 {[%clk 0:00:02]}  Kf5 {[%clk 0:00:34]} 34. Kf2 {[%clk 0:00:01]}  g4 {[%clk 0:00:32]} 35. hxg4+ {[%clk 0:00:01]}  Kxg4 {[%clk 0:00:33]} 36. Ne1 {[%clk 0:00:01]}  Rh1 {[%clk 0:00:32]} 37. b3 {[%clk 0:00:01]}  a4 {[%clk 0:00:28]} 38. bxa4 {[%clk 0:00:01]}  bxa4 {[%clk 0:00:28]} 39. Ke2 {[%clk 0:00:01]}  Kg3 {[%clk 0:00:25]} 40. Bf2+ {[%clk 0:00:01]}  Kf4 {[%clk 0:00:23]} 41. Nd3+ {[%clk 0:00:02]}  Ke4 {[%clk 0:00:22]} 42. Nc5+ {[%clk 0:00:02]}  Nxc5 {[%clk 0:00:22]} 43. dxc5 {[%clk 0:00:03]}  Rh6 {[%clk 0:00:20]} 44. Bd4 {[%clk 0:00:03]}  Re6 {[%clk 0:00:17]} 45. Kd2 {[%clk 0:00:02]}  g5 {[%clk 0:00:17]} 46. Ke2 {[%clk 0:00:03]}  g4 {[%clk 0:00:17]} 47. g3 {[%clk 0:00:03]}  Rh6 {[%clk 0:00:17]} 48. Kd2 {[%clk 0:00:03]}  Rh2+ {[%clk 0:00:17]} 49. Kc1 {[%clk 0:00:03]}  a3 {[%clk 0:00:14]} 50. c6 {[%clk 0:00:00]}  Kd3 {[%clk 0:00:13]} 0-1

[Event "January 2 Early 2024"]
[Site "https://www.chess.com"]
[Date "2024.01.02"]
[Round "6"]
[White "Ahmad, Khagan"]
[Black "Kleibel, Uwe"]
[Result "0-1"]
[Board "108"]
[TimeControl "180+1"]
[WhiteFideId "13431552"]
[BlackFideId "1270982"]
[WhiteElo "2543"]
[BlackElo "2355"]
[WhiteTeam "AZE"]
[BlackTeam "GER"]
[WhiteClock "0:00:00"]
[BlackClock "0:00:14"]

1. Nf3 {[%clk 0:02:54]}  d5 {[%clk 0:02:59]} 2. d4 {[%clk 0:02:53]}  Nf6 {[%clk 0:03:00]} 3. c4 {[%clk 0:02:54]}  e6 {[%clk 0:03:00]} 4. g3 {[%clk 0:02:54]}  Be7 {[%clk 0:03:01]} 5. Bg2 {[%clk 0:02:55]}  O-O {[%clk 0:03:02]} 6. O-O {[%clk 0:02:56]}  c6 {[%clk 0:03:02]} 7. Qc2 {[%clk 0:02:56]}  b6 {[%clk 0:03:02]} 8. Nbd2 {[%clk 0:02:56]}  Bb7 {[%clk 0:03:01]} 9. e4 {[%clk 0:02:57]}  Na6 {[%clk 0:03:01]} 10. a3 {[%clk 0:02:55]}  Rc8 {[%clk 0:02:58]} 11. e5 {[%clk 0:02:52]}  Nd7 {[%clk 0:02:57]} 12. b4 {[%clk 0:02:43]}  c5 {[%clk 0:02:56]} 13. dxc5 {[%clk 0:02:39]}  bxc5 {[%clk 0:02:55]} 14. b5 {[%clk 0:02:40]}  Nab8 {[%clk 0:02:50]} 15. a4 {[%clk 0:02:39]}  Qc7 {[%clk 0:02:39]} 16. Bb2 {[%clk 0:02:23]}  d4 {[%clk 0:02:39]} 17. Rfe1 {[%clk 0:02:18]}  Rfd8 {[%clk 0:02:23]} 18. a5 {[%clk 0:02:05]}  Nf8 {[%clk 0:02:23]} 19. h4 {[%clk 0:02:00]}  h6 {[%clk 0:02:21]} 20. Qd3 {[%clk 0:01:59]}  Nbd7 {[%clk 0:02:16]} 21. h5 {[%clk 0:00:54]}  Rb8 {[%clk 0:02:08]} 22. Bc1 {[%clk 0:00:45]}  Rbc8 {[%clk 0:02:07]} 23. Nb3 {[%clk 0:00:45]}  Bxf3 {[%clk 0:01:59]} 24. Qxf3 {[%clk 0:00:22]}  Nxe5 {[%clk 0:01:59]} 25. Rxe5 {[%clk 0:00:19]}  Qxe5 {[%clk 0:02:00]} 26. Bf4 {[%clk 0:00:20]}  Qf6 {[%clk 0:01:55]} 27. Qe4 {[%clk 0:00:10]}  Bd6 {[%clk 0:01:34]} 28. Bxd6 {[%clk 0:00:07]}  Rxd6 {[%clk 0:01:35]} 29. Qb7 {[%clk 0:00:07]}  Rdd8 {[%clk 0:01:27]} 30. Qxa7 {[%clk 0:00:07]}  d3 {[%clk 0:01:28]} 31. Rd1 {[%clk 0:00:05]}  Qc3 {[%clk 0:01:26]} 32. Nxc5 {[%clk 0:00:05]}  Qxc4 {[%clk 0:01:23]} 33. Nxd3 {[%clk 0:00:01]}  Rxd3 {[%clk 0:01:21]} 34. Rxd3 {[%clk 0:00:02]}  Qxd3 {[%clk 0:01:22]} 35. b6 {[%clk 0:00:03]}  Qd1+ {[%clk 0:01:11]} 36. Kh2 {[%clk 0:00:03]}  Qxh5+ {[%clk 0:01:12]} 37. Bh3 {[%clk 0:00:03]}  Qc5 {[%clk 0:01:03]} 38. b7 {[%clk 0:00:03]}  Qxa7 {[%clk 0:01:00]} 39. bxc8=Q {[%clk 0:00:04]}  Qxa5 {[%clk 0:01:01]} 40. Bg2 {[%clk 0:00:02]}  Qf5 {[%clk 0:01:00]} 41. Kg1 {[%clk 0:00:02]}  g5 {[%clk 0:00:58]} 42. Bf1 {[%clk 0:00:02]}  Kg7 {[%clk 0:00:56]} 43. Qc3+ {[%clk 0:00:03]}  Qf6 {[%clk 0:00:56]} 44. Qc7 {[%clk 0:00:02]}  Ng6 {[%clk 0:00:57]} 45. Kg2 {[%clk 0:00:01]}  Qd4 {[%clk 0:00:53]} 46. Be2 {[%clk 0:00:01]}  Qe5 {[%clk 0:00:51]} 47. Qc2 {[%clk 0:00:01]}  Qd5+ {[%clk 0:00:48]} 48. Bf3 {[%clk 0:00:01]}  Qe5 {[%clk 0:00:48]} 49. Be4 {[%clk 0:00:02]}  Ne7 {[%clk 0:00:47]} 50. Bf3 {[%clk 0:00:02]}  Nd5 {[%clk 0:00:47]} 51. Bxd5 {[%clk 0:00:02]}  Qxd5+ {[%clk 0:00:47]} 52. Kh2 {[%clk 0:00:02]}  Qf5 {[%clk 0:00:47]} 53. Qd2 {[%clk 0:00:02]}  Kg6 {[%clk 0:00:47]} 54. Kg1 {[%clk 0:00:02]}  h5 {[%clk 0:00:47]} 55. Qd8 {[%clk 0:00:01]}  Qf6 {[%clk 0:00:45]} 56. Qg8+ {[%clk 0:00:01]}  Qg7 {[%clk 0:00:45]} 57. Qd8 {[%clk 0:00:02]}  Kh7 {[%clk 0:00:36]} 58. Qd3+ {[%clk 0:00:02]}  Qg6 {[%clk 0:00:36]} 59. Qd7 {[%clk 0:00:02]}  Qf6 {[%clk 0:00:35]} 60. Kg2 {[%clk 0:00:02]}  h4 {[%clk 0:00:34]} 61. gxh4 {[%clk 0:00:02]}  gxh4 {[%clk 0:00:35]} 62. Qc8 {[%clk 0:00:01]}  Qf5 {[%clk 0:00:29]} 63. Qc7 {[%clk 0:00:01]}  Kg7 {[%clk 0:00:22]} 64. Qc3+ {[%clk 0:00:01]}  e5 {[%clk 0:00:21]} 65. Qc5 {[%clk 0:00:01]}  Qg4+ {[%clk 0:00:18]} 66. Kh2 {[%clk 0:00:01]}  f6 {[%clk 0:00:17]} 67. Qe7+ {[%clk 0:00:01]}  Kg6 {[%clk 0:00:17]} 68. Qe8+ {[%clk 0:00:02]}  Kf5 {[%clk 0:00:17]} 69. Qd7+ {[%clk 0:00:02]}  Kf4 {[%clk 0:00:17]} 70. Qa4+ {[%clk 0:00:03]}  e4 {[%clk 0:00:16]} 71. Qd4 {[%clk 0:00:03]}  Qf5 {[%clk 0:00:11]} 72. Qe3+ {[%clk 0:00:03]}  Ke5 {[%clk 0:00:11]} 73. Qc5+ {[%clk 0:00:04]}  Ke6 {[%clk 0:00:12]} 74. Qc8+ {[%clk 0:00:04]}  Ke5 {[%clk 0:00:12]} 75. Qc5+ {[%clk 0:00:04]}  Kf4 {[%clk 0:00:13]} 76. Qe3+ {[%clk 0:00:02]}  Kg4 {[%clk 0:00:13]} 77. Qe2+ {[%clk 0:00:02]}  Kg5 {[%clk 0:00:14]} 78. Qe3+ {[%clk 0:00:00]}  Qf4+ {[%clk 0:00:14]} 0-1